fUSD/lending_fUSD_20240220
["ID","MTS","AMOUNT","RATE_DAILY","PERIOD"]
[314615038,1708452639988,-390.82874407,0.0004,2]
[314615039,1708452640000,-390.82874407,0.0004,2]
[314615040,1708452640011,-390.82874407,0.0004,2]
[314615041,1708452640021,-390.82874407,0.0004,2]
[314615042,1708452640031,-390.82874407,0.0004,2]
[314615043,1708452640040,-390.82874407,0.0004,2]
[314615044,1708452640050,-390.82874407,0.0004,2]
[314615045,1708452640060,-390.82874407,0.0004,2]
[314615046,1708452640070,-390.82874407,0.0004,2]
[314615047,1708452640079,-390.82874407,0.0004,2]
[314615048,1708452640089,-390.82874407,0.0004,2]
[314615049,1708452640098,-390.82874407,0.0004,2]
[314615050,1708452640108,-390.82874407,0.0004,2]
[314615051,1708452640118,-390.82874407,0.0004,2]
[314615052,1708452640127,-390.82874407,0.0004,2]
[314615053,1708452640136,-153.2,0.00040065,2]
[314615054,1708452640145,-360.97,0.00040168,2]
[314615055,1708452640155,-153.3,0.000402,4]
[314615056,1708452640164,-153.3,0.000402,4]
[314615057,1708452640174,-1708.17,0.000402,4]
[314615058,1708452640184,-1708.17,0.000402,4]
[314615059,1708452640193,-1708.17,0.000402,4]
[314615060,1708452640203,-1708.17,0.000402,4]
[314615061,1708452640212,-1708.17,0.000402,4]
[314615062,1708452640222,-1708.17,0.000402,4]
[314615063,1708452640231,-1708.17,0.000402,4]
[314615064,1708452640240,-1708.17,0.000402,4]
[314615065,1708452640251,-1708.17,0.000402,4]
[314615066,1708452640260,-1708.17,0.000402,4]
[314615067,1708452640270,-1708.17,0.000402,4]
[314615068,1708452640279,-1708.17,0.000402,4]
[314615069,1708452640288,-1708.17,0.000402,4]
[314615070,1708452640298,-1708.17,0.000402,4]
[314615071,1708452640307,-1708.17,0.000402,4]
[314615072,1708452640317,-1708.17,0.000402,4]
[314615073,1708452640329,-1708.17,0.000402,4]
[314615074,1708452640339,-1708.17,0.000402,4]
[314615075,1708452640349,-1708.17,0.000402,4]
[314615076,1708452640359,-1708.17,0.000402,4]
[314615077,1708452640369,-289.03789441,0.00040239,2]
[314615078,1708452640379,-14154.46697636,0.00040243,2]
[314615079,1708452640389,-3210.59952892,0.00040411,2]
[314615080,1708452640399,-160.1268506,0.00040476,2]
[314615081,1708452640409,-354.86,0.00040492,2]
[314615082,1708452640418,-544.8902,0.0004055,30]
[314615083,1708452640427,-153.2,0.00040592,2]
[314615084,1708452640438,-1000.0,0.000406,15]
[314615085,1708452640447,-263.47413178,0.00040612,14]
[314615086,1708452640457,-150.1,0.000407,3]
[314615087,1708452640467,-2842.33585432,0.00040712,14]
[314615088,1708452640476,-531.31247793,0.00040718,2]
[314615089,1708452640485,-289.03789441,0.00040718,2]
[314615090,1708452640495,-246.71,0.00040733,2]
[314615091,1708452640506,-3802.59535719,0.00040815,2]
[314615092,1708452640515,-2498702.71005579,0.00040817,3]
[314615093,1708452640525,-1000.0,0.00040818,2]
[314615094,1708452640534,-172999.7542,0.00040818,2]
[314615095,1708452640544,-155.0,0.00040818,2]
[314615096,1708452640553,-2221.6212,0.00040818,2]
[314615097,1708452640563,-91238.8998,0.00040818,2]
[314615098,1708452640572,-100000.0,0.00040821,2]
[314615099,1708452640582,-500.0,0.00040821,2]
[314615100,1708452640592,-728.03448122,0.0004088,30]
[314615101,1708452640602,-1000.0,0.000409,15]
[314615102,1708452640611,-2979.35,0.000409,7]
[314615103,1708452640621,-2000.0,0.0004097,2]
[314615104,1708452640631,-95000.51270013,0.00040975,17]
[314615105,1708452640640,-159.97102698,0.00040979,120]
[314615106,1708452640649,-179.54169805,0.00040979,30]
[314615107,1708452640658,-757.96981909,0.00040979,90]
[314615108,1708452640668,-1221.67311034,0.00040979,120]
[314615109,1708452640677,-123315.10059816,0.00040979,32]
[314615110,1708452640686,-116939.96892753,0.00040979,30]
[314615111,1708452640865,-158561.90355177,0.00040979,30]
[314615112,1708452640877,-5740.14942064,0.00040979,30]
[314615113,1708452640886,-390.13246149,0.00040979,10]
[314615114,1708452640896,-932.35291389,0.00040979,5]
[314615115,1708452640905,-1843.1406594,0.00040979,7]
[314615116,1708452640914,-565.41989833,0.00040979,5]
[314615117,1708452640923,-1924.63887812,0.00040979,120]
[314615118,1708452640932,-1387.49420136,0.00040979,30]
[314615119,1708452640941,-6174.90386431,0.00040979,5]
[314615120,1708452640953,-6019.13483815,0.00040979,5]
[314615121,1708452640983,-5747.99084266,0.00040979,5]
[314615122,1708452640992,-3642.66560264,0.00040979,30]
[314615123,1708452641001,-495.96285597,0.00040979,120]
[314615124,1708452641011,-162172.26127911,0.00040979,7]
[314615125,1708452641020,-164.39793162,0.00040979,15]
[314615126,1708452641029,-591.45809434,0.00040979,120]
[314615127,1708452641038,-968.57040818,0.00040979,119]
[314615128,1708452641048,-11714.99791628,0.00040979,120]
[314615130,1708452641093,-447.64637563,0.00040979,2]
[314615132,1708452641102,-232.10524074,0.00040979,5]
[314615134,1708452641111,-251.53598393,0.00040979,30]
[314615136,1708452641120,-63223.20005537,0.00040979,7]
[314615137,1708452641129,-424.62214693,0.00040979,30]
[314615139,1708452641138,-2144.37483185,0.00040979,10]
[314615140,1708452641147,-869.33616524,0.00040979,120]
[314615141,1708452641156,-587.99284259,0.00040979,120]
[314615142,1708452641165,-24766.78373889,0.00040979,5]
[314615143,1708452641175,-1000.0,0.00040979,120]
[314615144,1708452641184,-562.41663536,0.00040979,14]
[314615145,1708452641193,-324848.80595368,0.00040979,120]
[314615146,1708452641203,-324.36239177,0.00040979,7]
[314615147,1708452641212,-334.52174568,0.00040979,5]
[314615148,1708452641221,-205.64940389,0.00040979,7]
[314615149,1708452641230,-619.64620868,0.00040979,120]
[314615150,1708452641240,-383.52587649,0.00040979,2]
[314615151,1708452641250,-3000.0,0.00040979,2]
[314615152,1708452641260,-1727.001711,0.00040979,30]
[314615153,1708452641269,-164295.7418,0.00040979,7]
[314615154,1708452641278,-11163.73067371,0.0004099,16]
[314615155,1708452641290,-6441.54418061,0.0004099,16]
[314615156,1708452641299,-2482.87,0.00041,7]
[314615157,1708452641309,-1000.0,0.00041,11]
[314615158,1708452641321,-6834.20681939,0.00041006,17]
[314615159,1708452641333,-2000.05746243,0.00041006,17]
[314615160,1708452641344,-445.80290683,0.00041006,17]
[314615161,1708452641358,-1429.63012864,0.00041006,17]
[314615163,1708452641368,-174.46567177,0.00041021,10]
[314615164,1708452641377,-155.0,0.0004104,2]
[314615165,1708452641387,-152.478145,0.00041046,2]
[314615166,1708452641397,-180.529012,0.00041046,2]
[314615167,1708452641406,-158.524245,0.00041046,2]
[314615168,1708452641415,-153.892777,0.00041046,2]
[314615169,1708452641425,-179.928479,0.00041046,2]
[314615170,1708452641435,-981.00771142,0.000411,5]
[314615171,1708452641444,-312.83,0.000411,2]
[314615172,1708452641454,-312.83,0.000411,2]
[314615173,1708452641463,-312.83,0.000411,2]
[314615174,1708452641473,-312.83,0.000411,2]
[314615175,1708452641482,-312.83,0.000411,2]
[314615176,1708452641492,-312.83,0.000411,2]
[314615177,1708452641502,-312.83,0.000411,2]
[314615178,1708452641511,-312.83,0.000411,2]
[314615179,1708452641520,-312.83,0.000411,2]
[314615180,1708452641529,-312.83,0.000411,2]
[314615181,1708452641539,-1022.68662185,0.0004116,10]
[314615182,1708452641548,-981.77371599,0.0004123,5]
[314615183,1708452641558,-385.65,0.00041305,2]
[314615184,1708452641567,-150.5,0.0004137,120]
[314615185,1708452641576,-150.5,0.0004138,120]
[314615186,1708452641585,-150.5,0.0004139,120]
[314615187,1708452641595,-150.5,0.00041536,120]
[314615188,1708452641604,-150.5,0.00041546,120]
[314615189,1708452641614,-150.5,0.00041556,120]
[314615190,1708452641623,-153.892777,0.00041559,30]
[314615191,1708452641633,-2842.33585424,0.00041911,16]
[314615192,1708452641642,-1000.0,0.00042,12]
[314615193,1708452641651,-14154.46697636,0.00042019,4]
[314615194,1708452641661,-152.478145,0.00042072,30]
[314615195,1708452641671,-153.892777,0.00042072,30]
[314615196,1708452641680,-179.928479,0.00042072,30]
[314615197,1708452641689,-1290.93,0.00042092,15]
[314615198,1708452641699,-1000.0,0.00042117,2]
[314615199,1708452641708,-246.71,0.00042205,2]
[314615200,1708452641717,-3210.59952892,0.00042244,4]
[314615201,1708452641726,-310.0,0.0004241,2]
[314615202,1708452641735,-360.97,0.00042432,2]
[314615203,1708452641745,-153.3,0.000425,4]
[314615204,1708452641755,-153.3,0.000425,4]
[314615205,1708452641764,-153.3,0.000425,4]
[314615206,1708452641773,-153.3,0.000425,4]
[314615207,1708452641783,-1708.17,0.000425,4]
[314615208,1708452641792,-1708.17,0.000425,4]
[314615209,1708452641802,-1708.17,0.000425,4]
[314615210,1708452641811,-1708.17,0.000425,4]
[314615211,1708452641820,-1708.17,0.000425,4]
[314615212,1708452641830,-1708.17,0.000425,4]
[314615213,1708452641839,-1708.17,0.000425,4]
[314615214,1708452641849,-1708.17,0.000425,4]
[314615215,1708452641858,-1708.17,0.000425,4]
[314615216,1708452641867,-1708.17,0.000425,4]
[314615217,1708452641876,-1708.17,0.000425,4]
[314615218,1708452641885,-1708.17,0.000425,4]
[314615219,1708452641894,-1708.17,0.000425,4]
[314615220,1708452641903,-1708.17,0.000425,4]
[314615221,1708452641913,-1708.17,0.000425,4]
[314615222,1708452641921,-1708.17,0.000425,4]
[314615223,1708452641931,-1708.17,0.000425,4]
[314615224,1708452641940,-1708.17,0.000425,4]
[314615225,1708452641949,-1708.17,0.000425,4]
[314615226,1708452641958,-1708.17,0.000425,4]
[314615227,1708452641968,-22771.25563625,0.00042571,2]
[314615228,1708452642268,-97249.63883063,0.00042571,2]
[314615229,1708452642281,-1240.42500002,0.00042571,2]
[314615230,1708452642292,-2810.2604076,0.00042571,2]
[314615231,1708452642303,-14087.37556331,0.00042571,2]
[314615233,1708452642314,-7440.85920496,0.00042571,2]
[314615235,1708452642328,-5122.97194,0.00042571,2]
[314615238,1708452642383,-5196.97995139,0.00042571,2]
[314615255,1708452645559,-1188.81538494,0.000392,2]
[314615256,1708452645569,-219.2,0.00040807,10]
[314615257,1708452645578,-13954.98461502,0.00042571,2]
[314615258,1708452645703,-17929.1742845,0.00042571,2]
[314615259,1708452645713,-153.892777,0.00042585,30]
[314615260,1708452645722,-981.77371599,0.00042809,5]
[314615261,1708452645731,-730.63237569,0.00042897,10]
[314615262,1708452645741,-300.0,0.00043,44]
[314615263,1708452645751,-1000.0,0.00043,10]
[314615264,1708452645761,-2979.35,0.00043,7]
[314615265,1708452645770,-1000.0,0.00043,13]
[314615266,1708452645780,-174.46567177,0.00043057,11]
[314615267,1708452645790,-152.478145,0.00043098,30]
[314615268,1708452645800,-153.892777,0.00043098,30]
[314615269,1708452645809,-179.928479,0.00043098,30]
[314615270,1708452645818,-2842.33585424,0.00043109,17]
[314615271,1708452645828,-150.46,0.00043151,2]
[314615272,1708452645837,-1022.68662185,0.00043243,11]
[314615273,1708452645847,-150.0,0.00043261,4]
[314615274,1708452645856,-150.0,0.00043261,4]
[314615275,1708452645866,-150.1,0.000434,3]
[314615276,1708452645875,-246.71,0.00043677,2]
[314615277,1708452645884,-14154.46697636,0.00043795,5]
[314615278,1708452645893,-500.0,0.00043798,4]
[314615279,1708452645902,-500.0,0.00043807,4]
[314615280,1708452645912,-500.0,0.00043816,4]
[314615281,1708452645920,-500.0,0.00043825,4]
[314615282,1708452645930,-500.0,0.00043834,4]
[314615283,1708452645939,-200.0,0.00043836,30]
[314615284,1708452645950,-500.0,0.00043842,4]
[314615285,1708452645959,-500.0,0.00043851,4]
[314615286,1708452645968,-12675.55475113,0.00043853,8]
[314615287,1708452645977,-1725.4598905,0.00043853,4]
[314615288,1708452645986,-705.86995521,0.00043853,4]
[314615290,1708452645997,-500.0,0.0004386,4]
[314615291,1708452646008,-500.0,0.00043869,4]
[314615293,1708452646017,-500.0,0.00043878,4]
[314615295,1708452646030,-500.0,0.00043886,4]
[314615297,1708452646039,-500.0,0.00043895,4]
[314615299,1708452646048,-15732.0,0.000439,3]
[314615300,1708452646057,-500.0,0.00043904,4]
[314615302,1708452646067,-500.0,0.00043913,4]
[314615304,1708452646076,-1000.0,0.00044,14]
[314615306,1708452646086,-1000.0,0.00044,14]
[314615307,1708452646095,-3210.59952892,0.00044076,6]
[314615308,1708452646105,-430.33369458,0.00044182,2]
[314615309,1708452646115,-1499.32081833,0.00044182,2]
[314615310,1708452646125,-8887.05190014,0.00044182,2]
[314615311,1708452646135,-954.72746792,0.00044182,2]
[314615312,1708452646144,-2482.87,0.000442,7]
[314615313,1708452646153,-150.0,0.00044275,4]
[314615314,1708452646163,-150.0,0.00044275,4]
[314615315,1708452646172,-23083.2161216,0.00044276,14]
[314615316,1708452646181,-2842.33585424,0.00044308,19]
[314615317,1708452646190,-981.77371599,0.00044388,5]
[314615319,1708452646202,-150.0,0.000444,120]
[314615320,1708452646211,-360.97,0.00044696,2]
[314615322,1708452646220,-2979.35,0.000449,7]
[314615324,1708452646229,-153.3,0.000449,5]
[314615326,1708452646240,-153.3,0.000449,5]
[314615328,1708452646249,-153.3,0.000449,5]
[314615329,1708452646261,-153.3,0.000449,5]
[314615331,1708452646272,-1708.17,0.000449,5]
[314615332,1708452646282,-1708.17,0.000449,5]
[314615333,1708452646291,-1708.17,0.000449,5]
[314615334,1708452646301,-1708.17,0.000449,5]
[314615335,1708452646310,-1708.17,0.000449,5]
[314615336,1708452646320,-1708.17,0.000449,5]
[314615337,1708452646330,-1708.17,0.000449,5]
[314615338,1708452646341,-1708.17,0.000449,5]
[314615339,1708452646352,-1708.17,0.000449,5]
[314615340,1708452646361,-1708.17,0.000449,5]
[314615341,1708452646371,-1708.17,0.000449,5]
[314615342,1708452646381,-1708.17,0.000449,5]
[314615343,1708452646391,-1708.17,0.000449,5]
[314615344,1708452646401,-1708.17,0.000449,5]
[314615345,1708452646411,-1708.17,0.000449,5]
[314615346,1708452646421,-1708.17,0.000449,5]
[314615347,1708452646431,-1708.17,0.000449,5]
[314615348,1708452646441,-1708.17,0.000449,5]
[314615349,1708452646452,-1708.17,0.000449,5]
[314615350,1708452646462,-1708.17,0.000449,5]
[314615351,1708452646472,-2007.89611009,0.00045,30]
[314615352,1708452646482,-2999.99999805,0.00045,60]
[314615353,1708452646491,-1000.0,0.00045,15]
[314615354,1708452646502,-174.46567177,0.00045093,12]
[314615355,1708452646512,-282.49,0.00045109,120]
[314615356,1708452646521,-246.71,0.00045149,2]
[314615357,1708452646531,-1000.0,0.00045167,2]
[314615358,1708452646540,-1022.68662185,0.00045325,12]
[314615359,1708452646550,-2842.33585424,0.00045507,20]
[314615360,1708452646559,-14154.46697636,0.00045571,7]
[314615361,1708452646569,-1290.93,0.00045828,15]
[314615362,1708452646578,-10000.0,0.0004588,25]
[314615363,1708452646588,-3210.59952892,0.00045909,7]
[314615364,1708452646598,-155.0,0.00045932,30]
[314615365,1708452646607,-981.77371599,0.00045967,5]
[314615366,1708452646616,-2791.5,0.00046,15]
[314615367,1708452646626,-1000.0,0.00046,16]
[314615368,1708452646635,-152.0,0.00046307,3]
[314615369,1708452646645,-1000.0,0.00046329,2]
[314615370,1708452646655,-4137.899,0.00046407,2]
[314615371,1708452646665,-7427.0,0.00046407,2]
[314615372,1708452646674,-8174.0,0.00046407,2]
[314615373,1708452646683,-2931.0,0.00046407,2]
[314615374,1708452646693,-42635.0,0.00046407,2]
[314615375,1708452646702,-5636.0,0.00046407,2]
[314615376,1708452646711,-19872.0,0.00046407,2]
[314615377,1708452646720,-2292.0,0.00046407,2]
[314615378,1708452646730,-1038.0,0.00046407,2]
[314615379,1708452646739,-241.964,0.00046407,2]
[314615380,1708452646748,-208.036,0.00046407,2]
[314615381,1708452646759,-155.0,0.00046479,30]
[314615382,1708452646769,-1235.0,0.0004656,30]
[314615383,1708452646778,-500.0,0.00046575,30]
[314615384,1708452646787,-605.29,0.00046575,30]
[314615385,1708452646796,-442.90545135,0.00046575,30]
[314615386,1708452646806,-487.34,0.00046575,30]
[314615387,1708452646815,-1000.0,0.00046575,7]
[314615388,1708452646825,-516.84197371,0.00046575,2]
[314615389,1708452646834,-500.0,0.00046575,30]
[314615390,1708452646843,-500.0,0.00046575,30]
[314615391,1708452646853,-531.70867722,0.00046575,30]
[314615392,1708452646863,-500.0,0.00046575,30]
[314615393,1708452646872,-500.0,0.00046575,2]
[314615394,1708452646881,-318.33135797,0.00046575,2]
[314615395,1708452646891,-500.0,0.00046575,2]
[314615396,1708452646900,-473.72260213,0.00046575,30]
[314615397,1708452646910,-500.0,0.00046575,30]
[314615398,1708452646920,-500.0,0.00046575,30]
[314615399,1708452646929,-457.56593167,0.00046575,30]
[314615400,1708452646938,-500.0,0.00046575,30]
[314615401,1708452646948,-523.95022029,0.00046575,30]
[314615402,1708452646958,-500.0,0.00046575,30]
[314615403,1708452646968,-553.51630278,0.00046575,30]
[314615404,1708452646977,-500.0,0.00046575,30]
[314615405,1708452646986,-500.0,0.00046575,30]
[314615406,1708452646997,-500.0,0.00046575,30]
[314615407,1708452647009,-500.0,0.00046575,30]
[314615408,1708452647018,-500.0,0.00046575,30]
[314615409,1708452647030,-500.0,0.00046575,30]
[314615410,1708452647040,-525.44636909,0.00046575,30]
[314615411,1708452647049,-500.0,0.00046575,30]
[314615412,1708452647058,-641.40903656,0.00046575,30]
[314615413,1708452647069,-500.0,0.00046575,30]
[314615414,1708452647078,-500.0,0.00046575,30]
[314615415,1708452647088,-500.09719459,0.00046575,30]
[314615416,1708452647098,-524.15036582,0.00046575,30]
[314615417,1708452647108,-500.0,0.00046575,30]
[314615418,1708452647118,-500.0,0.00046575,30]
[314615419,1708452647127,-500.0,0.00046575,30]
[314615420,1708452647137,-556.06867048,0.00046575,30]
[314615421,1708452647146,-578.5,0.00046575,30]
[314615422,1708452647156,-500.0,0.00046575,30]
[314615423,1708452647165,-500.0,0.00046575,30]
[314615424,1708452647175,-500.0,0.00046575,30]
[314615425,1708452647185,-500.0,0.00046575,30]
[314615426,1708452647196,-500.0,0.00046575,30]
[314615427,1708452647205,-500.0,0.00046575,30]
[314615428,1708452647215,-500.0,0.00046575,30]
[314615429,1708452647225,-500.0,0.00046575,30]
[314615430,1708452647234,-500.0,0.00046575,30]
[314615431,1708452647243,-500.0,0.00046575,30]
[314615432,1708452647254,-500.0,0.00046575,30]
[314615433,1708452647264,-500.0,0.00046575,30]
[314615434,1708452647274,-500.0,0.00046575,30]
[314615435,1708452647283,-510.68887644,0.00046575,30]
[314615436,1708452647294,-500.0,0.00046575,30]
[314615437,1708452647303,-500.0,0.00046575,30]
[314615438,1708452647312,-500.0,0.00046575,30]
[314615439,1708452647323,-151.0,0.00046575,30]
[314615440,1708452647334,-500.0,0.00046575,30]
[314615441,1708452647344,-500.0,0.00046575,30]
[314615442,1708452647353,-500.0,0.00046575,30]
[314615443,1708452647363,-500.0,0.00046575,30]
[314615444,1708452647373,-500.0,0.00046575,30]
[314615445,1708452647384,-500.0,0.00046575,30]
[314615446,1708452647394,-642.3,0.00046575,30]
[314615447,1708452647404,-500.0,0.00046575,30]
[314615448,1708452647413,-500.0,0.00046575,30]
[314615449,1708452647423,-500.0,0.00046575,30]
[314615450,1708452647433,-500.0,0.00046575,30]
[314615451,1708452647444,-500.0,0.00046575,30]
[314615452,1708452647454,-541.59017451,0.00046575,30]
[314615453,1708452647464,-500.0,0.00046575,30]
[314615454,1708452647474,-500.0,0.00046575,30]
[314615455,1708452647483,-500.0,0.00046575,30]
[314615456,1708452647493,-500.0,0.00046575,30]
[314615457,1708452647504,-500.0,0.00046575,30]
[314615458,1708452647513,-414.14035581,0.00046575,30]
[314615459,1708452647523,-500.0,0.00046575,30]
[314615460,1708452647533,-500.0,0.00046575,30]
[314615461,1708452647544,-509.04820591,0.00046575,30]
[314615462,1708452647554,-500.0,0.00046575,2]
[314615463,1708452647564,-500.0,0.00046575,30]
[314615464,1708452647574,-526.01351193,0.00046575,30]
[314615465,1708452647584,-500.0,0.00046575,30]
[314615466,1708452647594,-500.0,0.00046575,30]
[314615467,1708452647604,-500.0,0.00046575,30]
[314615468,1708452647614,-163.93965785,0.00046575,30]
[314615469,1708452647623,-500.0,0.00046575,30]
[314615470,1708452647632,-500.0,0.00046575,30]
[314615471,1708452647642,-547.95026196,0.00046575,30]
[314615472,1708452647651,-500.0,0.00046575,30]
[314615473,1708452647661,-500.0,0.00046575,30]
[314615474,1708452647670,-500.0,0.00046575,30]
[314615475,1708452647680,-500.0,0.00046575,30]
[314615476,1708452647689,-500.0,0.00046575,30]
[314615477,1708452647699,-501.63,0.00046575,30]
[314615478,1708452647708,-546.09410393,0.00046575,30]
[314615479,1708452647718,-500.0,0.00046575,30]
[314615480,1708452647727,-500.0,0.00046575,30]
[314615481,1708452647737,-500.0,0.00046575,30]
[314615482,1708452647746,-500.0,0.00046575,30]
[314615483,1708452647757,-500.0,0.00046575,2]
[314615484,1708452647766,-500.0,0.00046575,30]
[314615485,1708452647777,-500.0,0.00046575,30]
[314615486,1708452647787,-500.0,0.00046575,30]
[314615487,1708452647796,-500.0,0.00046575,30]
[314615488,1708452647806,-261.1440179,0.00046575,30]
[314615489,1708452647816,-522.06071866,0.00046575,30]
[314615490,1708452647827,-500.0,0.00046575,30]
[314615491,1708452647836,-500.0,0.00046575,30]
[314615492,1708452647846,-613.09493668,0.00046575,30]
[314615493,1708452647857,-500.0,0.00046575,30]
[314615494,1708452647867,-500.0,0.00046575,30]
[314615495,1708452647876,-500.0,0.00046575,30]
[314615496,1708452647887,-500.0,0.00046575,30]
[314615497,1708452647897,-500.0,0.00046575,30]
[314615498,1708452647906,-546.8324193,0.00046575,30]
[314615499,1708452647916,-500.0,0.00046575,30]
[314615500,1708452647927,-500.0,0.00046575,30]
[314615501,1708452647937,-500.0,0.00046575,30]
[314615502,1708452647948,-500.0,0.00046575,30]
[314615503,1708452647959,-500.0,0.00046575,30]
[314615504,1708452647970,-1000.0,0.00046575,7]
[314615505,1708452647981,-259.17614229,0.00046575,30]
[314615506,1708452647992,-500.0,0.00046575,30]
[314615507,1708452648008,-500.0,0.00046575,30]
[314615508,1708452648018,-500.0,0.00046575,30]
[314615509,1708452648028,-180.25890359,0.00046575,30]
[314615510,1708452648038,-594.9581945,0.00046575,30]
[314615511,1708452648050,-500.0,0.00046575,30]
[314615512,1708452648060,-500.0,0.00046575,30]
[314615513,1708452648070,-500.0,0.00046575,30]
[314615514,1708452648080,-500.0,0.00046575,30]
[314615515,1708452648090,-500.0,0.00046575,30]
[314615516,1708452648100,-500.0,0.00046575,30]
[314615517,1708452648109,-500.0,0.00046575,30]
[314615518,1708452648119,-500.0,0.00046575,30]
[314615519,1708452648129,-500.0,0.00046575,30]
[314615520,1708452648139,-500.0,0.00046575,30]
[314615521,1708452648148,-500.0,0.00046575,30]
[314615522,1708452648159,-500.0,0.00046575,30]
[314615523,1708452648169,-500.0,0.00046575,30]
[314615524,1708452648179,-500.0,0.00046575,30]
[314615525,1708452648189,-500.0,0.00046575,30]
[314615526,1708452648198,-500.0,0.00046575,30]
[314615527,1708452648208,-500.0,0.00046575,30]
[314615528,1708452648219,-500.0,0.00046575,30]
[314615529,1708452648229,-521.67741789,0.00046575,30]
[314615530,1708452648238,-500.0,0.00046575,30]
[314615531,1708452648248,-500.0,0.00046575,30]
[314615532,1708452648260,-500.0,0.00046575,30]
[314615533,1708452648270,-513.75,0.00046575,30]
[314615534,1708452648280,-500.0,0.00046575,30]
[314615535,1708452648290,-500.0,0.00046575,30]
[314615536,1708452648300,-612.7,0.00046575,30]
[314615537,1708452648310,-500.0,0.00046575,30]
[314615538,1708452648319,-213.44976106,0.00046575,30]
[314615539,1708452648329,-500.0,0.00046575,30]
[314615540,1708452648339,-500.0,0.00046575,30]
[314615541,1708452648349,-161.97737633,0.00046575,30]
[314615542,1708452648359,-500.0,0.00046575,30]
[314615543,1708452648368,-500.0,0.00046575,30]
[314615544,1708452648377,-500.0,0.00046575,30]
[314615545,1708452648387,-500.0,0.00046575,30]
[314615546,1708452648397,-500.0,0.00046575,30]
[314615547,1708452648406,-500.0,0.00046575,30]
[314615548,1708452648416,-500.0,0.00046575,30]
[314615549,1708452648426,-500.0,0.00046575,30]
[314615550,1708452648435,-500.0,0.00046575,30]
[314615551,1708452648445,-500.0,0.00046575,30]
[314615552,1708452648455,-520.63874669,0.00046575,30]
[314615553,1708452648467,-500.0,0.00046575,30]
[314615554,1708452648477,-500.0,0.00046575,2]
[314615555,1708452648487,-150.0,0.00046575,30]
[314615556,1708452648497,-500.0,0.00046575,30]
[314615557,1708452648510,-500.0,0.00046575,30]
[314615558,1708452648520,-500.0,0.00046575,30]
[314615559,1708452648529,-500.0,0.00046575,30]
[314615560,1708452648539,-500.0,0.00046575,2]
[314615561,1708452648549,-500.0,0.00046575,30]
[314615562,1708452648560,-500.0,0.00046575,4]
[314615563,1708452648570,-500.0,0.00046575,30]
[314615564,1708452648580,-500.0,0.00046575,30]
[314615565,1708452648589,-500.0,0.00046575,30]
[314615566,1708452648599,-519.03783786,0.00046575,30]
[314615567,1708452648609,-500.0,0.00046575,30]
[314615568,1708452648619,-522.61140793,0.00046575,30]
[314615569,1708452648629,-500.0,0.00046575,30]
[314615570,1708452648639,-500.0,0.00046575,30]
[314615571,1708452648649,-1000.0,0.00046575,120]
[314615572,1708452648659,-500.0,0.00046575,30]
[314615573,1708452648669,-500.0,0.00046575,30]
[314615574,1708452648853,-500.0,0.00046575,30]
[314615575,1708452648864,-500.0,0.00046575,30]
[314615576,1708452648873,-500.0,0.00046575,30]
[314615577,1708452648883,-531.9710167,0.00046575,30]